[Event "*** Titled Tuesday Blitz"]
[Site "Chess.com"]
[Date "2020.11.10"]
[Round "4"]
[White "Vasily85"]
[Black "Chamal_Gedgafov"]
[Result "1-0"]
[WhiteElo "2400"]
[BlackElo "2156"]
[TimeControl "180+1"]
[EndTime "10:42:24 PST"]
[Termination "Vasily85 won on time"]

1. d4 {[%clk 0:03:00.9]} 1... Nf6 {[%clk 0:02:35.3]} 2. Bg5 {[%clk 0:03:01.1]}
2... g6 {[%clk 0:02:25]} 3. Bxf6 {[%clk 0:03:01.1]} 3... exf6 {[%clk 0:02:25.9]}
4. e3 {[%clk 0:03:02]} 4... d5 {[%clk 0:02:25]} 5. g3 {[%clk 0:03:02.8]} 5... c6
{[%clk 0:02:24.7]} 6. Bg2 {[%clk 0:03:03]} 6... Bd6 {[%clk 0:02:24.9]} 7. Ne2
{[%clk 0:03:02.9]} 7... O-O {[%clk 0:02:24.6]} 8. O-O {[%clk 0:02:59.9]} 8...
Nd7 {[%clk 0:02:24.3]} 9. b3 {[%clk 0:03:00.4]} 9... Re8 {[%clk 0:02:24.1]} 10.
c4 {[%clk 0:03:00.4]} 10... dxc4 {[%clk 0:02:24.3]} 11. bxc4 {[%clk 0:03:01.3]}
11... f5 {[%clk 0:02:24.3]} 12. c5 {[%clk 0:02:56.6]} 12... Bc7 {[%clk
0:02:22.9]} 13. Nd2 {[%clk 0:02:45.9]} 13... Nf6 {[%clk 0:02:21.9]} 14. Nc3
{[%clk 0:02:45.2]} 14... Be6 {[%clk 0:02:20.3]} 15. Rb1 {[%clk 0:02:38.1]} 15...
Rb8 {[%clk 0:02:19.9]} 16. Qa4 {[%clk 0:02:32.4]} 16... a6 {[%clk 0:02:18.3]}
17. Nc4 {[%clk 0:02:29.2]} 17... Nd5 {[%clk 0:02:14.8]} 18. Nxd5 {[%clk
0:02:22.1]} 18... Bxd5 {[%clk 0:02:14.2]} 19. Rb3 {[%clk 0:02:09.7]} 19... f4
{[%clk 0:01:27.6]} 20. gxf4 {[%clk 0:02:03.6]} 20... Bxg2 {[%clk 0:01:23.1]} 21.
Kxg2 {[%clk 0:02:04.5]} 21... Qh4 {[%clk 0:01:22.8]} 22. Ne5 {[%clk 0:01:43.9]}
22... f6 {[%clk 0:01:07.4]} 23. Qc4+ {[%clk 0:01:36.6]} 23... Kg7 {[%clk
0:01:07.3]} 24. Qf7+ {[%clk 0:01:33.3]} 24... Kh6 {[%clk 0:01:07.3]} 25. e4
{[%clk 0:01:02.8]} 25... fxe5 {[%clk 0:00:32.5]} 26. Rh3 {[%clk 0:01:00.8]}
26... Qxh3+ {[%clk 0:00:31.3]} 27. Kxh3 {[%clk 0:01:01.7]} 27... Rec8 {[%clk
0:00:17.2]} 28. fxe5 {[%clk 0:00:56]} 28... Ba5 {[%clk 0:00:15.8]} 29. f4 {[%clk
0:00:48.6]} 29... Rf8 {[%clk 0:00:13.2]} 30. Qe7 {[%clk 0:00:49.1]} 30... Bc3
{[%clk 0:00:09.6]} 31. Qg5+ {[%clk 0:00:42.7]} 31... Kg7 {[%clk 0:00:09.1]} 32.
e6 {[%clk 0:00:41.9]} 32... Bxd4 {[%clk 0:00:07.1]} 33. e7 {[%clk 0:00:40.9]}
33... Rf7 {[%clk 0:00:06.8]} 34. e5 {[%clk 0:00:26.4]} 34... Re8 {[%clk
0:00:05.4]} 35. f5 {[%clk 0:00:22.4]} 35... Bxe5 {[%clk 0:00:02.2]} 36. fxg6
{[%clk 0:00:15.7]} 36... Rxf1 {[%clk 0:00:01.6]} 37. Qxe5+ {[%clk 0:00:16.2]}
37... Kxg6 {[%clk 0:00:01.8]} 38. Qe4+ {[%clk 0:00:14.8]} 1-0

[Event "*** Titled Tuesday Blitz"]
[Site "Chess.com"]
[Date "2020.11.10"]
[Round "4"]
[White "freshfoodcompany"]
[Black "nicoderboss24"]
[Result "0-1"]
[WhiteElo "2407"]
[BlackElo "2230"]
[TimeControl "180+1"]
[EndTime "10:42:26 PST"]
[Termination "nicoderboss24 won by resignation"]

1. d4 {[%clk 0:03:00.9]} 1... d5 {[%clk 0:02:54.6]} 2. c4 {[%clk 0:03:00.1]}
2... e6 {[%clk 0:02:55.1]} 3. Nc3 {[%clk 0:02:59.9]} 3... c5 {[%clk 0:02:55.3]}
4. cxd5 {[%clk 0:02:55.8]} 4... exd5 {[%clk 0:02:56.2]} 5. dxc5 {[%clk
0:02:54.4]} 5... d4 {[%clk 0:02:53.3]} 6. Ne4 {[%clk 0:02:53.9]} 6... Nc6 {[%clk
0:02:51.8]} 7. g3 {[%clk 0:02:53.3]} 7... Bxc5 {[%clk 0:02:50.1]} 8. Nxc5 {[%clk
0:02:51.9]} 8... Qa5+ {[%clk 0:02:50.8]} 9. Bd2 {[%clk 0:02:51.4]} 9... Qxc5
{[%clk 0:02:51.4]} 10. Bg2 {[%clk 0:02:51.4]} 10... Nf6 {[%clk 0:02:50]} 11. Rc1
{[%clk 0:02:48.7]} 11... Qb6 {[%clk 0:02:49.9]} 12. Qc2 {[%clk 0:02:43.7]} 12...
O-O {[%clk 0:02:44.6]} 13. Nf3 {[%clk 0:02:39.5]} 13... Bg4 {[%clk 0:02:33.9]}
14. h3 {[%clk 0:02:37.1]} 14... Bh5 {[%clk 0:02:29.9]} 15. O-O {[%clk
0:02:36.2]} 15... Bg6 {[%clk 0:02:26.7]} 16. Qb3 {[%clk 0:02:33]} 16... Qxb3
{[%clk 0:02:23.8]} 17. axb3 {[%clk 0:02:33.9]} 17... Rfe8 {[%clk 0:02:23.2]} 18.
e3 {[%clk 0:02:29.3]} 18... dxe3 {[%clk 0:02:06.1]} 19. Bxe3 {[%clk 0:02:27.9]}
19... Nd5 {[%clk 0:02:04.2]} 20. Bc5 {[%clk 0:02:23.9]} 20... Be4 {[%clk
0:02:03.6]} 21. Nd4 {[%clk 0:02:20.4]} 21... Bxg2 {[%clk 0:01:56.2]} 22. Kxg2
{[%clk 0:02:21.3]} 22... Nxd4 {[%clk 0:01:50.6]} 23. Bxd4 {[%clk 0:02:22.2]}
23... a6 {[%clk 0:01:51.3]} 24. Rc5 {[%clk 0:02:20.7]} 24... Rad8 {[%clk
0:01:41.5]} 25. Rd1 {[%clk 0:02:12.8]} 25... Nb4 {[%clk 0:01:25.2]} 26. Rd2
{[%clk 0:02:01.4]} 26... Nc6 {[%clk 0:01:20]} 27. Be3 {[%clk 0:01:57.1]} 27...
Rxd2 {[%clk 0:01:08.9]} 28. Bxd2 {[%clk 0:01:56.3]} 28... Re5 {[%clk 0:01:07.4]}
29. Rc3 {[%clk 0:01:52]} 29... Rd5 {[%clk 0:01:02.5]} 30. Re3 {[%clk 0:01:50.5]}
30... Rd8 {[%clk 0:00:59.9]} 31. Bc3 {[%clk 0:01:49]} 31... f6 {[%clk
0:00:59.2]} 32. Kf3 {[%clk 0:01:45.1]} 32... Kf7 {[%clk 0:00:58.8]} 33. Kf4
{[%clk 0:01:38.1]} 33... Rd5 {[%clk 0:00:56.3]} 34. Ke4 {[%clk 0:01:36.3]} 34...
Rd7 {[%clk 0:00:54.3]} 35. Rf3 {[%clk 0:01:34.5]} 35... Re7+ {[%clk 0:00:53.5]}
36. Kd3 {[%clk 0:01:33.8]} 36... Rd7+ {[%clk 0:00:51.9]} 37. Kc2 {[%clk
0:01:32.3]} 37... Rd5 {[%clk 0:00:51]} 38. Rd3 {[%clk 0:01:29.8]} 38... Rxd3
{[%clk 0:00:50.9]} 39. Kxd3 {[%clk 0:01:29.8]} 39... b5 {[%clk 0:00:49.7]} 40.
Ke4 {[%clk 0:01:27.7]} 40... Ke6 {[%clk 0:00:49.4]} 41. b4 {[%clk 0:01:24.5]}
41... f5+ {[%clk 0:00:48.4]} 42. Kf4 {[%clk 0:01:19.9]} 42... g6 {[%clk
0:00:46.6]} 43. Kg5 {[%clk 0:01:17.4]} 43... Kf7 {[%clk 0:00:44.8]} 44. Kh6
{[%clk 0:01:16.8]} 44... Kg8 {[%clk 0:00:44.8]} 45. f4 {[%clk 0:01:14.9]} 45...
Nd8 {[%clk 0:00:44.3]} 46. Kg5 {[%clk 0:01:13.6]} 46... Ne6+ {[%clk 0:00:40.6]}
47. Kf6 {[%clk 0:01:13.5]} 47... Nc7 {[%clk 0:00:38.2]} 48. Ke5 {[%clk
0:01:12.8]} 48... Kf7 {[%clk 0:00:35.7]} 49. Kd6 {[%clk 0:01:12.7]} 49... Ne8+
{[%clk 0:00:36]} 50. Kc6 {[%clk 0:01:12.5]} 50... Ke6 {[%clk 0:00:36.6]} 51. Be5
{[%clk 0:01:10.6]} 51... g5 {[%clk 0:00:25.1]} 52. Kb6 {[%clk 0:01:10.1]} 52...
g4 {[%clk 0:00:19]} 53. hxg4 {[%clk 0:01:08.5]} 53... fxg4 {[%clk 0:00:18.5]}
54. Kxa6 {[%clk 0:01:08.4]} 54... Nd6 {[%clk 0:00:18.4]} 55. Bxd6 {[%clk
0:01:07.8]} 55... Kxd6 {[%clk 0:00:19.3]} 56. Kxb5 {[%clk 0:01:07.7]} 56... h5
{[%clk 0:00:20]} 57. f5 {[%clk 0:01:02.4]} 57... h4 {[%clk 0:00:20.2]} 58. f6
{[%clk 0:01:02.1]} 58... h3 {[%clk 0:00:20.3]} 59. f7 {[%clk 0:01:02.1]} 59...
Ke7 {[%clk 0:00:20.7]} 60. Kc6 {[%clk 0:01:02.5]} 60... h2 {[%clk 0:00:20.1]}
61. b5 {[%clk 0:01:02.7]} 61... h1=Q+ {[%clk 0:00:20.5]} 62. Kc7 {[%clk
0:01:02.9]} 62... Qf3 {[%clk 0:00:18.8]} 63. b6 {[%clk 0:01:02]} 63... Qxg3+
{[%clk 0:00:18.9]} 64. Kc6 {[%clk 0:01:01.4]} 64... Qb3 {[%clk 0:00:19.5]} 65.
b7 {[%clk 0:01:01.1]} 65... Qxb2 {[%clk 0:00:20]} 66. Kc7 {[%clk 0:01:00.7]}
66... Qxb7+ {[%clk 0:00:20.2]} 67. Kxb7 {[%clk 0:01:00.8]} 67... Kxf7 {[%clk
0:00:21.1]} 68. Kc6 {[%clk 0:01:01.4]} 68... g3 {[%clk 0:00:22]} 69. Kd5 {[%clk
0:01:02.1]} 69... g2 {[%clk 0:00:22.9]} 70. Ke4 {[%clk 0:01:02.9]} 70... g1=Q
{[%clk 0:00:23.8]} 71. Kf3 {[%clk 0:01:03.8]} 71... Qg6 {[%clk 0:00:24.2]} 72.
Kf4 {[%clk 0:01:03.8]} 72... Kf6 {[%clk 0:00:24.4]} 73. Kf3 {[%clk 0:01:04.7]}
0-1

[Event "*** Titled Tuesday Blitz"]
[Site "Chess.com"]
[Date "2020.11.10"]
[Round "4"]
[White "amintabatabaei"]
[Black "Orest_Vovk"]
[Result "0-1"]
[WhiteElo "2909"]
[BlackElo "2585"]
[TimeControl "180+1"]
[EndTime "10:42:27 PST"]
[Termination "Orest_Vovk won on time"]

1. a4 {[%clk 0:03:00.9]} 1... Nc6 {[%clk 0:02:59.3]} 2. e4 {[%clk 0:02:57.6]}
2... g5 {[%clk 0:02:55.4]} 3. d4 {[%clk 0:02:55.5]} 3... h6 {[%clk 0:02:53.5]}
4. h4 {[%clk 0:02:54.5]} 4... g4 {[%clk 0:02:51.8]} 5. Bb5 {[%clk 0:02:47.2]}
5... Bg7 {[%clk 0:02:49]} 6. Qxg4 {[%clk 0:02:41]} 6... Bxd4 {[%clk 0:02:45.9]}
7. Nf3 {[%clk 0:02:40.7]} 7... d6 {[%clk 0:02:33.4]} 8. Qg3 {[%clk 0:02:38.9]}
8... Bf6 {[%clk 0:02:32.5]} 9. Nc3 {[%clk 0:02:38]} 9... Bxc3+ {[%clk 0:02:27]}
10. bxc3 {[%clk 0:02:38.9]} 10... Nf6 {[%clk 0:02:27.7]} 11. e5 {[%clk
0:02:36.9]} 11... Rg8 {[%clk 0:02:20.5]} 12. Qf4 {[%clk 0:02:35.5]} 12... dxe5
{[%clk 0:02:07.7]} 13. Nxe5 {[%clk 0:02:36.4]} 13... Bd7 {[%clk 0:01:55.3]} 14.
Ba3 {[%clk 0:01:55]} 14... Nxe5 {[%clk 0:01:49.8]} 15. Qxe5 {[%clk 0:01:55.9]}
15... Bxb5 {[%clk 0:01:49]} 16. axb5 {[%clk 0:01:56.8]} 16... Ng4 {[%clk
0:01:31.8]} 17. Qe2 {[%clk 0:01:51]} 17... Qd7 {[%clk 0:01:24.6]} 18. O-O {[%clk
0:01:36.1]} 18... Qe6 {[%clk 0:01:15.6]} 19. Qxe6 {[%clk 0:01:21.4]} 19... fxe6
{[%clk 0:01:16.5]} 20. Rfe1 {[%clk 0:01:22.3]} 20... Kf7 {[%clk 0:01:15.7]} 21.
Bc5 {[%clk 0:01:14.5]} 21... a6 {[%clk 0:01:12.2]} 22. c4 {[%clk 0:01:10.4]}
22... axb5 {[%clk 0:00:59.3]} 23. cxb5 {[%clk 0:01:11.3]} 23... Rxa1 {[%clk
0:00:59.2]} 24. Rxa1 {[%clk 0:01:12.2]} 24... Rd8 {[%clk 0:00:59.3]} 25. f3
{[%clk 0:01:09]} 25... Ne5 {[%clk 0:00:49.4]} 26. Ra7 {[%clk 0:00:20.7]} 26...
Rd5 {[%clk 0:00:47.2]} 27. Be3 {[%clk 0:00:21.1]} 27... Rxb5 {[%clk 0:00:41.8]}
28. Bxh6 {[%clk 0:00:21.4]} 28... Nc6 {[%clk 0:00:36.9]} 29. Ra4 {[%clk
0:00:19.6]} 29... Rc5 {[%clk 0:00:30.3]} 30. Rf4+ {[%clk 0:00:16.3]} 30... Kg6
{[%clk 0:00:28.4]} 31. Bf8 {[%clk 0:00:14.7]} 31... Rxc2 {[%clk 0:00:26.1]} 32.
g4 {[%clk 0:00:15.4]} 32... b5 {[%clk 0:00:19.8]} 33. h5+ {[%clk 0:00:15.4]}
33... Kg5 {[%clk 0:00:18.2]} 34. Rf7 {[%clk 0:00:10.1]} 34... b4 {[%clk
0:00:18.2]} 35. h6 {[%clk 0:00:04.2]} 35... b3 {[%clk 0:00:14.1]} 36. Bg7 {[%clk
0:00:04.7]} 36... e5 {[%clk 0:00:13.6]} 0-1

[Event "*** Titled Tuesday Blitz"]
[Site "Chess.com"]
[Date "2020.11.10"]
[Round "4"]
[White "andrzej"]
[Black "DenishevM"]
[Result "1-0"]
[WhiteElo "2376"]
[BlackElo "2596"]
[TimeControl "180+1"]
[EndTime "10:42:27 PST"]
[Termination "andrzej won by resignation"]

1. e4 {[%clk 0:03:00.9]} 1... c6 {[%clk 0:02:58.4]} 2. d4 {[%clk 0:03:00.3]}
2... d5 {[%clk 0:02:59.3]} 3. exd5 {[%clk 0:03:01.1]} 3... cxd5 {[%clk 0:02:59]}
4. Bd3 {[%clk 0:03:01.7]} 4... Nc6 {[%clk 0:02:58.5]} 5. c3 {[%clk 0:03:02.2]}
5... Qc7 {[%clk 0:02:58.2]} 6. Ne2 {[%clk 0:03:00.5]} 6... Bg4 {[%clk
0:02:57.4]} 7. O-O {[%clk 0:03:00.8]} 7... e6 {[%clk 0:02:52.9]} 8. Qe1 {[%clk
0:03:01.3]} 8... Nf6 {[%clk 0:02:48.8]} 9. f3 {[%clk 0:02:58.1]} 9... Bh5 {[%clk
0:02:48.3]} 10. Qh4 {[%clk 0:02:58.6]} 10... Be7 {[%clk 0:02:33.9]} 11. Bg5
{[%clk 0:02:58.1]} 11... Bg6 {[%clk 0:02:16.9]} 12. Bxg6 {[%clk 0:02:57.8]}
12... fxg6 {[%clk 0:02:17.8]} 13. Qh3 {[%clk 0:02:44.9]} 13... Kf7 {[%clk
0:02:13.5]} 14. Nf4 {[%clk 0:02:41.3]} 14... Qd7 {[%clk 0:02:06.6]} 15. Re1
{[%clk 0:02:41.2]} 15... Nd8 {[%clk 0:02:06.8]} 16. Nd3 {[%clk 0:02:38.2]} 16...
Bd6 {[%clk 0:02:04.2]} 17. Nd2 {[%clk 0:02:30.3]} 17... h6 {[%clk 0:02:03.3]}
18. Bxf6 {[%clk 0:02:29.4]} 18... gxf6 {[%clk 0:02:04.2]} 19. f4 {[%clk
0:02:24.6]} 19... Nc6 {[%clk 0:01:57.5]} 20. Nf3 {[%clk 0:02:20]} 20... Rae8
{[%clk 0:01:55.3]} 21. Re2 {[%clk 0:02:18.1]} 21... Kg7 {[%clk 0:01:33.4]} 22.
Rae1 {[%clk 0:02:14.2]} 22... Nd8 {[%clk 0:01:32.7]} 23. Nc5 {[%clk 0:01:59]}
23... Bxc5 {[%clk 0:01:23.6]} 24. dxc5 {[%clk 0:01:59.9]} 24... Re7 {[%clk
0:01:19]} 25. Nd4 {[%clk 0:01:48.3]} 25... Rhe8 {[%clk 0:01:18.4]} 26. Qg4
{[%clk 0:01:42.1]} 26... h5 {[%clk 0:01:08.1]} 27. Qg3 {[%clk 0:01:38.2]} 27...
Nc6 {[%clk 0:00:47]} 28. Nb5 {[%clk 0:01:23.4]} 28... e5 {[%clk 0:00:31.8]} 29.
Nd6 {[%clk 0:01:15.6]} 29... Rf8 {[%clk 0:00:31.2]} 30. f5 {[%clk 0:01:02.5]}
30... g5 {[%clk 0:00:26]} 31. Qf3 {[%clk 0:01:02.6]} 31... Kh6 {[%clk
0:00:13.1]} 32. Qxd5 {[%clk 0:01:02.1]} 32... Rd8 {[%clk 0:00:13.3]} 33. Qf3
{[%clk 0:00:56.9]} 33... b6 {[%clk 0:00:12.2]} 34. b4 {[%clk 0:00:56.5]} 34...
bxc5 {[%clk 0:00:12]} 35. bxc5 {[%clk 0:00:57.4]} 35... Na5 {[%clk 0:00:12.6]}
36. Rd1 {[%clk 0:00:54.4]} 36... Qc7 {[%clk 0:00:07.4]} 37. Qe3 {[%clk
0:00:47.7]} 37... Nc4 {[%clk 0:00:06.1]} 38. Nxc4 {[%clk 0:00:33.6]} 38... Rxd1+
{[%clk 0:00:07]} 39. Kf2 {[%clk 0:00:34.2]} 39... Rd5 {[%clk 0:00:07.4]} 40. h4
{[%clk 0:00:23.8]} 40... Qxc5 {[%clk 0:00:07]} 41. hxg5+ {[%clk 0:00:24.3]}
41... fxg5 {[%clk 0:00:07.3]} 42. f6 {[%clk 0:00:20.7]} 42... Qxe3+ {[%clk
0:00:06.6]} 43. Nxe3 {[%clk 0:00:21.6]} 43... Rf7 {[%clk 0:00:07.5]} 44. Nxd5
{[%clk 0:00:21.3]} 1-0

[Event "*** Titled Tuesday Blitz"]
[Site "Chess.com"]
[Date "2020.11.10"]
[Round "4"]
[White "gui_borba"]
[Black "GothamChess"]
[Result "0-1"]
[WhiteElo "2439"]
[BlackElo "2641"]
[TimeControl "180+1"]
[EndTime "10:42:29 PST"]
[Termination "GothamChess won on time"]

1. d4 {[%clk 0:03:00.9]} 1... Nf6 {[%clk 0:02:58.3]} 2. Bf4 {[%clk 0:03:01.3]}
2... b6 {[%clk 0:02:52.5]} 3. Nc3 {[%clk 0:03:01.3]} 3... Bb7 {[%clk 0:02:52.9]}
4. f3 {[%clk 0:03:01.9]} 4... d5 {[%clk 0:02:52.8]} 5. e3 {[%clk 0:03:01.5]}
5... e6 {[%clk 0:02:52.2]} 6. Qd2 {[%clk 0:03:01.8]} 6... Nh5 {[%clk 0:02:51.4]}
7. Be5 {[%clk 0:02:39.8]} 7... f6 {[%clk 0:02:51.2]} 8. Bg3 {[%clk 0:02:39.8]}
8... Nxg3 {[%clk 0:02:50.5]} 9. hxg3 {[%clk 0:02:40.7]} 9... c5 {[%clk
0:02:42.5]} 10. g4 {[%clk 0:02:39]} 10... Nc6 {[%clk 0:02:38.5]} 11. O-O-O
{[%clk 0:02:36.2]} 11... Qe7 {[%clk 0:02:13]} 12. Bd3 {[%clk 0:02:31.8]} 12...
h6 {[%clk 0:02:07.4]} 13. Bg6+ {[%clk 0:02:26.1]} 13... Kd8 {[%clk 0:02:06.8]}
14. dxc5 {[%clk 0:02:07.3]} 14... bxc5 {[%clk 0:02:01.3]} 15. Nge2 {[%clk
0:01:48.2]} 15... Kc7 {[%clk 0:01:35.4]} 16. Nf4 {[%clk 0:01:37.8]} 16... Rd8
{[%clk 0:01:34]} 17. Bf5 {[%clk 0:00:48.5]} 17... Bc8 {[%clk 0:01:06]} 18. Ng6
{[%clk 0:00:24.9]} 18... Qe8 {[%clk 0:01:06.1]} 19. Nxh8 {[%clk 0:00:25.4]}
19... exf5 {[%clk 0:01:05.9]} 20. Nxd5+ {[%clk 0:00:22.9]} 20... Kb8 {[%clk
0:01:05.1]} 21. gxf5 {[%clk 0:00:23.3]} 21... Bxf5 {[%clk 0:01:04.4]} 22. e4
{[%clk 0:00:23.8]} 22... Be6 {[%clk 0:01:04.5]} 23. Qc3 {[%clk 0:00:23.5]} 23...
Bd6 {[%clk 0:00:57.8]} 24. Qb3+ {[%clk 0:00:23.3]} 24... Ka8 {[%clk 0:00:53.5]}
25. Qa4 {[%clk 0:00:22.8]} 25... Kb7 {[%clk 0:00:23.2]} 26. Qb5+ {[%clk
0:00:17.8]} 26... Ka8 {[%clk 0:00:23.5]} 27. Ng6 {[%clk 0:00:18]} 27... Rb8
{[%clk 0:00:17.4]} 28. Qa4 {[%clk 0:00:18.1]} 28... Bd7 {[%clk 0:00:12.8]} 29.
Ngf4 {[%clk 0:00:11.9]} 29... Nb4 {[%clk 0:00:06.2]} 30. Qa5 {[%clk 0:00:12.3]}
30... Qc8 {[%clk 0:00:02.8]} 31. a3 {[%clk 0:00:10.5]} 31... Nc6 {[%clk
0:00:01.9]} 32. Qc3 {[%clk 0:00:09.5]} 32... Nd4 {[%clk 0:00:02.4]} 33. Rxd4
{[%clk 0:00:08.9]} 33... cxd4 {[%clk 0:00:03.3]} 34. Qxd4 {[%clk 0:00:09]} 34...
Be5 {[%clk 0:00:03.7]} 35. Qd3 {[%clk 0:00:06.4]} 35... Bxb2+ {[%clk 0:00:04.2]}
36. Kd2 {[%clk 0:00:06.9]} 36... Bb5 {[%clk 0:00:04.5]} 37. Qb3 {[%clk
0:00:03.1]} 37... Be5 {[%clk 0:00:04.7]} 38. Nb4 {[%clk 0:00:01.3]} 38... Bxf4+
{[%clk 0:00:04.6]} 0-1

[Event "*** Titled Tuesday Blitz"]
[Site "Chess.com"]
[Date "2020.11.10"]
[Round "4"]
[White "GigaQuparadze"]
[Black "MITerryble"]
[Result "1-0"]
[WhiteElo "2753"]
[BlackElo "2903"]
[TimeControl "180+1"]
[EndTime "10:42:30 PST"]
[Termination "GigaQuparadze won on time"]

1. e4 {[%clk 0:03:00.9]} 1... e6 {[%clk 0:02:53.5]} 2. d4 {[%clk 0:02:59]} 2...
d5 {[%clk 0:02:53.9]} 3. Nd2 {[%clk 0:02:59.6]} 3... Be7 {[%clk 0:02:53.4]} 4.
Bd3 {[%clk 0:02:58.2]} 4... c5 {[%clk 0:02:53.2]} 5. c3 {[%clk 0:02:58.1]} 5...
Nc6 {[%clk 0:02:51.6]} 6. Ne2 {[%clk 0:02:57.4]} 6... cxd4 {[%clk 0:02:50.9]} 7.
cxd4 {[%clk 0:02:58.3]} 7... dxe4 {[%clk 0:02:51.2]} 8. Nxe4 {[%clk 0:02:58.9]}
8... Nf6 {[%clk 0:02:52.1]} 9. O-O {[%clk 0:02:58.6]} 9... O-O {[%clk 0:02:50]}
10. Be3 {[%clk 0:02:54.3]} 10... Nb4 {[%clk 0:02:49.2]} 11. Nxf6+ {[%clk
0:02:49]} 11... Bxf6 {[%clk 0:02:50.1]} 12. Be4 {[%clk 0:02:49.4]} 12... Nd5
{[%clk 0:02:48.3]} 13. Nc3 {[%clk 0:02:49.1]} 13... b6 {[%clk 0:02:36.9]} 14.
Nxd5 {[%clk 0:02:19.7]} 14... exd5 {[%clk 0:02:35.8]} 15. Bd3 {[%clk 0:02:20]}
15... Be6 {[%clk 0:02:30.3]} 16. Rc1 {[%clk 0:02:19.2]} 16... Rc8 {[%clk
0:02:29.3]} 17. Qd2 {[%clk 0:02:03.2]} 17... Qd7 {[%clk 0:02:25.2]} 18. Bg5
{[%clk 0:01:56.1]} 18... Bxd4 {[%clk 0:01:46.9]} 19. Bxh7+ {[%clk 0:01:54.7]}
19... Kxh7 {[%clk 0:01:47.8]} 20. Qxd4 {[%clk 0:01:54.5]} 20... f6 {[%clk
0:01:47.8]} 21. Be3 {[%clk 0:01:51.8]} 21... Rc4 {[%clk 0:01:45.4]} 22. Qd2
{[%clk 0:01:46.8]} 22... Rfc8 {[%clk 0:01:43.7]} 23. Rcd1 {[%clk 0:01:38.2]}
23... Rc2 {[%clk 0:01:41.4]} 24. Qd3+ {[%clk 0:01:38.2]} 24... Bf5 {[%clk
0:01:39.7]} 25. Qb3 {[%clk 0:01:36.5]} 25... R2c4 {[%clk 0:01:26.1]} 26. Rd4
{[%clk 0:01:25.5]} 26... Bc2 {[%clk 0:01:09.6]} 27. Qa3 {[%clk 0:01:24.9]} 27...
Ra4 {[%clk 0:01:05]} 28. Rxa4 {[%clk 0:01:21.7]} 28... Qxa4 {[%clk 0:01:05.9]}
29. Qe7 {[%clk 0:01:07.4]} 29... Qxa2 {[%clk 0:00:53.4]} 30. Bd4 {[%clk
0:01:06.7]} 30... Qc4 {[%clk 0:00:39.9]} 31. Qe3 {[%clk 0:00:51.6]} 31... Qd3
{[%clk 0:00:36.9]} 32. Qe6 {[%clk 0:00:47.3]} 32... Qf5 {[%clk 0:00:21.9]} 33.
Qe7 {[%clk 0:00:42.2]} 33... Rc4 {[%clk 0:00:22.2]} 34. Qe3 {[%clk 0:00:28.3]}
34... Qd3 {[%clk 0:00:20.3]} 35. Qe8 {[%clk 0:00:17]} 35... Qg6 {[%clk
0:00:12.4]} 36. Qe3 {[%clk 0:00:16.7]} 36... Qd3 {[%clk 0:00:05.5]} 37. Qe8
{[%clk 0:00:16.5]} 37... Qf5 {[%clk 0:00:02.2]} 38. Be3 {[%clk 0:00:11.3]} 1-0

[Event "*** Titled Tuesday Blitz"]
[Site "Chess.com"]
[Date "2020.11.10"]
[Round "4"]
[White "jefferyx"]
[Black "sjam6687"]
[Result "1-0"]
[WhiteElo "2965"]
[BlackElo "2713"]
[TimeControl "180+1"]
[EndTime "10:42:30 PST"]
[Termination "jefferyx won by resignation"]

1. e4 {[%clk 0:03:00.9]} 1... e5 {[%clk 0:02:58]} 2. Nf3 {[%clk 0:03:00.9]} 2...
Nc6 {[%clk 0:02:56.9]} 3. Nc3 {[%clk 0:03:01.4]} 3... Nf6 {[%clk 0:02:56.5]} 4.
d4 {[%clk 0:03:02]} 4... exd4 {[%clk 0:02:52.5]} 5. Nxd4 {[%clk 0:03:02.9]} 5...
Bb4 {[%clk 0:02:49.7]} 6. Nxc6 {[%clk 0:03:03.2]} 6... bxc6 {[%clk 0:02:49.3]}
7. Bd3 {[%clk 0:03:03.9]} 7... d5 {[%clk 0:02:48.8]} 8. exd5 {[%clk 0:03:04.8]}
8... cxd5 {[%clk 0:02:43.7]} 9. O-O {[%clk 0:03:05.3]} 9... O-O {[%clk
0:02:43.6]} 10. Qf3 {[%clk 0:03:05.8]} 10... Bg4 {[%clk 0:02:41.1]} 11. Qg3
{[%clk 0:03:05.5]} 11... c5 {[%clk 0:02:40.8]} 12. Bg5 {[%clk 0:03:00.3]} 12...
Be6 {[%clk 0:02:36]} 13. Rad1 {[%clk 0:02:57.8]} 13... Bxc3 {[%clk 0:02:25.6]}
14. bxc3 {[%clk 0:02:58.7]} 14... c4 {[%clk 0:01:58.2]} 15. Bxc4 {[%clk
0:02:31]} 15... Ne4 {[%clk 0:01:57.7]} 16. Bxd8 {[%clk 0:02:31.9]} 16... Nxg3
{[%clk 0:01:55.7]} 17. hxg3 {[%clk 0:02:32.6]} 17... Rfxd8 {[%clk 0:01:53.5]}
18. Bb3 {[%clk 0:02:31.2]} 18... Rac8 {[%clk 0:01:47.1]} 19. Rd3 {[%clk
0:02:30.8]} 19... Kf8 {[%clk 0:01:39.9]} 20. Rfd1 {[%clk 0:02:30.2]} 20... Ke7
{[%clk 0:01:35.8]} 21. f3 {[%clk 0:02:29.2]} 21... a5 {[%clk 0:01:32.1]} 22. Kf2
{[%clk 0:02:28.5]} 22... Rd7 {[%clk 0:01:29.5]} 23. g4 {[%clk 0:02:11.7]} 23...
Rdc7 {[%clk 0:01:26.3]} 24. Re1 {[%clk 0:01:55.6]} 24... Kf6 {[%clk 0:01:24.9]}
25. Ree3 {[%clk 0:01:55.2]} 25... Rc5 {[%clk 0:01:23]} 26. Ke1 {[%clk
0:01:53.2]} 26... g5 {[%clk 0:01:22.9]} 27. Kd2 {[%clk 0:01:53.2]} 27... h5
{[%clk 0:01:18.9]} 28. gxh5 {[%clk 0:01:51.7]} 28... g4 {[%clk 0:01:15.1]} 29.
f4 {[%clk 0:01:35.9]} 29... a4 {[%clk 0:01:04.1]} 30. Bxa4 {[%clk 0:01:34.7]}
30... Rc4 {[%clk 0:01:02.9]} 31. Rd4 {[%clk 0:01:05.1]} 31... Rxd4+ {[%clk
0:01:02.4]} 32. cxd4 {[%clk 0:01:06]} 32... Rc4 {[%clk 0:01:02.3]} 33. Bb5
{[%clk 0:01:06.7]} 33... Rxd4+ {[%clk 0:00:59.9]} 34. Bd3 {[%clk 0:01:07.4]}
34... Rxf4 {[%clk 0:00:58.2]} 35. h6 {[%clk 0:01:08]} 35... Ra4 {[%clk
0:00:51.3]} 36. h7 {[%clk 0:00:44.7]} 36... Kg7 {[%clk 0:00:48.8]} 37. Re5
{[%clk 0:00:44.7]} 37... Ra8 {[%clk 0:00:45.9]} 38. Ke3 {[%clk 0:00:44.8]} 38...
Kh8 {[%clk 0:00:40.9]} 39. Rg5 {[%clk 0:00:29]} 39... Rd8 {[%clk 0:00:30.3]} 40.
Kd4 {[%clk 0:00:25.4]} 40... f6 {[%clk 0:00:28.6]} 41. Rg6 {[%clk 0:00:25.4]}
41... Rf8 {[%clk 0:00:27.8]} 42. a4 {[%clk 0:00:25.1]} 42... Bc8 {[%clk
0:00:25.8]} 43. a5 {[%clk 0:00:20.7]} 43... f5 {[%clk 0:00:24.5]} 44. a6 {[%clk
0:00:18.6]} 44... Kxh7 {[%clk 0:00:19.9]} 45. a7 {[%clk 0:00:18.5]} 45... Bb7
{[%clk 0:00:19.4]} 46. Rb6 {[%clk 0:00:18.2]} 46... Ba8 {[%clk 0:00:19.1]} 47.
Rb8 {[%clk 0:00:17.7]} 1-0